[Event "CZE Extraliga 2019-20"]
[Site "Czech Republic"]
[Date "2020.01.26"]
[Round "6.5"]
[White "Jurcik, Marian"]
[Black "Koziol, Kamil"]
[Result "1-0"]
[ECO "B23"]
[WhiteElo "2486"]
[BlackElo "2292"]
[Annotator "ChessBase"]
[PlyCount "181"]
[EventDate "2019.09.15"]
[EventType "team-tourn"]
[EventCountry "CZE"]
[SourceTitle "playchess.com"]
[Source "ChessBase"]
[SourceQuality "1"]
[TimeControl "40/5400+30:1800+30"]

1. e4 {[%emt 0:00:00]} c5 {[%emt 0:00:00]} 2. Nc3 {[%emt 0:00:45]} d6 {[%emt 0:01:28]} 3. Nge2 {[%emt 0:01:11]} Nf6 {[%emt 0:00:33]} 4. g3 {[%emt 0:00:29]} Nc6 {[%emt 0:02:42]} 5. Bg2 {[%emt 0:00:18]} g6 {[%emt 0:03:29]} 6. O-O {[%emt 0:01:08]} Bg7 {[%emt 0:00:08]} 7. d3 {[%emt 0:00:06]} O-O {[%emt 0:05:30]} 8. Bg5 {[%emt 0:00:22]} Bd7 {[%emt 0:07:21]} 9. Qd2 {[%emt 0:01:22]} Re8 {[%emt 0:14:04]} 10. Bh6 {[%emt 0:05:34]} Bh8 {[%emt 0:01:21]} 11. h3 {[%emt 0:00:04]} Rb8 {[%emt 0:06:43]} 12. f4 {[%emt 0:02:04]} b5 {[%emt 0:05:17]} 13. g4 {[%emt 0:03:19]} b4 {[%emt 0:06:44]} 14. Nd1 {[%emt 0:01:15]} Qb6 {[%emt 0:18:09]} 15. Kh1 {[%emt 0:05:34]} Rec8 {[%emt 0:02:43]} 16. Ne3 {[%emt 0:13:02]} a5 {[%emt 0:00:50]} 17. f5 {[%emt 0:03:49]} Ne5 {[%emt 0:05:51]} 18. Nf4 {[%emt 0:01:40]} Bc6 {[%emt 0:01:16]} 19. g5 {[%emt 0:02:12]} Nfd7 {[%emt 0:00:44]} 20. Rf2 {[%emt 0:09:07]} a4 {[%emt 0:01:37]} 21. Raf1 {[%emt 0:00:33]} Re8 {[%emt 0:07:49]} 22. h4 {[%emt 0:02:50]} Qb7 {[%emt 0:04:43]} 23. b3 {[%emt 0:01:46]} axb3 {[%emt 0:00:40]} 24. axb3 {[%emt 0:00:10]} Bg7 {[%emt 0:00:51]} 25. Bxg7 {[%emt 0:02:04]} Kxg7 {[%emt 0:00:04]} 26. h5 {[%emt 0:00:57]} Nf8 {[%emt 0:01:08]} 27. Nfd5 {[%emt 0:04:51]} Kg8 {[%emt 0:00:55]} 28. Rf4 {[%emt 0:02:03]} Nfd7 {[%emt 0:00:42]} 29. Bh3 {[%emt 0:06:24]} Bxd5 {[%emt 0:00:27]} 30. exd5 {[%emt 0:02:08]} e6 {[%emt 0:00:37]} 31. fxe6 {[%emt 0:01:06]} fxe6 {[%emt 0:00:02]} 32. Qg2 {[%emt 0:02:28]} Nf8 {[%emt 0:00:52]} 33. h6 {[%emt 0:01:33]} Rbd8 {[%emt 0:00:31]} 34. Kh2 {[%emt 0:01:41]} Qa7 {[%emt 0:00:35]} 35. Qf2 {[%emt 0:00:53]} Qe7 {[%emt 0:00:20]} 36. Rf6 {[%emt 0:00:40]} exd5 {[%emt 0:00:35]} 37. Nxd5 {[%emt 0:00:09]} Ng4+ {[%emt 0:00:10]} 38. Bxg4 {[%emt 0:00:26]} Qe5+ {[%emt 0:00:04]} 39. Nf4 {[%emt 0:09:01]} Qxg5 {[%emt 0:00:02]} 40. Ne6 {[%emt 0:03:17]} Qxh6+ {[%emt 0:01:36]} 41. Kg1 {[%emt 0:31:00]} Nxe6 {[%emt 0:08:16]} 42. Bxe6+ {[%emt 0:00:00]} Kh8 {[%emt 0:01:04]} 43. Bd5 {[%emt 0:00:00]} Qg5+ {[%emt 0:06:42]} 44. Bg2 {[%emt 0:00:00]} Kg7 {[%emt 0:05:37]} 45. Rf7+ {[%emt 0:00:00]} Kh6 {[%emt 0:00:16]} 46. Qf4 {[%emt 0:00:00]} Qxf4 {[%emt 0:00:21]} 47. R1xf4 {[%emt 0:00:00]} Re2 {[%emt 0:01:04]} 48. Rf2 {[%emt 0:00:00]} Re1+ {[%emt 0:00:32]} 49. Bf1 {[%emt 0:00:00]} Rc1 {[%emt 0:02:28]} 50. Kg2 {[%emt 0:00:00]} Ra8 {[%emt 0:02:06]} 51. d4 {[%emt 0:00:00]} Ra2 {[%emt 0:01:17]} 52. Bd3 {[%emt 0:00:00]} Re1 {[%emt 0:01:01]} 53. Kf3 {[%emt 0:00:00]} Rh1 {[%emt 0:00:44]} 54. Ke4 {[%emt 0:00:00]} Rh5 {[%emt 0:00:25]} 55. Rd7 {[%emt 0:00:00]} Ra8 {[%emt 0:02:13]} 56. Rff7 {[%emt 0:00:00]} Rh4+ {[%emt 0:00:22]} 57. Kf3 {[%emt 0:00:00]} Rxd4 {[%emt 0:00:37]} 58. Rxh7+ {[%emt 0:00:00]} Kg5 {[%emt 0:00:08]} 59. Rdf7 {[%emt 0:00:07]} Re8 {[%emt 0:02:09]} 60. Rh2 {[%emt 0:00:26]} Re6 {[%emt 0:00:41]} 61. Rg2+ {[%emt 0:02:02]} Kh6 {[%emt 0:00:06]} 62. Re2 {[%emt 0:01:16]} Rxe2 {[%emt 0:00:41]} 63. Kxe2 {[%emt 0:00:06]} Kg5 {[%emt 0:01:32]} 64. Ke3 {[%emt 0:02:07]} Rd5 {[%emt 0:00:30]} 65. Be4 {[%emt 0:01:17]} Re5 {[%emt 0:00:52]} 66. Rd7 {[%emt 0:01:07]} Re6 {[%emt 0:00:02]} 67. Kf3 {[%emt 0:02:08]} Rf6+ {[%emt 0:00:14]} 68. Kg3 {[%emt 0:00:55]} Re6 {[%emt 0:00:05]} 69. Bd3 {[%emt 0:01:17]} Re3+ {[%emt 0:01:19]} 70. Kf2 {[%emt 0:00:01]} Re6 {[%emt 0:00:11]} 71. Kf3 {[%emt 0:00:09]} Kh4 {[%emt 0:01:57]} 72. Bc4 {[%emt 0:01:16]} Rf6+ {[%emt 0:00:05]} 73. Ke4 {[%emt 0:00:04]} g5 {[%emt 0:00:14]} 74. Kd5 {[%emt 0:00:26]} g4 {[%emt 0:00:21]} 75. Rxd6 {[%emt 0:00:25]} Rf2 {[%emt 0:00:15]} 76. Bd3 {[%emt 0:01:01]} g3 {[%emt 0:00:15]} 77. Rh6+ {[%emt 0:00:27]} Kg4 {[%emt 0:00:35]} 78. Rg6+ {[%emt 0:00:04]} Kh3 {[%emt 0:00:10]} 79. Kxc5 {[%emt 0:00:48]} Rf4 {[%emt 0:00:59]} 80. Bc4 {[%emt 0:00:55]} Kh2 {[%emt 0:00:10]} 81. Bd5 {[%emt 0:01:44]} Rh4 {[%emt 0:00:06]} 82. Rg5 {[%emt 0:02:56]} Rf4 {[%emt 0:00:04]} 83. Rh5+ {[%emt 0:00:50]} Kg1 {[%emt 0:00:05]} 84. Rh1+ {[%emt 0:00:19]} Kf2 {[%emt 0:00:03]} 85. Rd1 {[%emt 0:00:14]} Rg4 {[%emt 0:00:44]} 86. Rd4 {[%emt 0:00:15]} Rg5 {[%emt 0:00:09]} 87. Kxb4 {[%emt 0:00:18]} Ke3 {[%emt 0:00:23]} 88. Rd3+ {[%emt 0:00:01]} Ke2 {[%emt 0:00:08]} 89. Bf3+ {[%emt 0:00:32]} Kf2 {[%emt 0:00:09]} 90. c4 {[%emt 0:00:21]} Rf5 {[%emt 0:00:08]} 91. Bd5 {[%emt 0:00:12]} 1-0

[Event "CZE Extraliga 2019-20"]
[Site "Czech Republic"]
[Date "2020.01.26"]
[Round "6.5"]
[White "PAR8 Petr Martin GM"]
[Black "DUR6 Blahynka Martin IM"]
[Result "1-0"]
[ECO "A05"]
[WhiteElo "2460"]
[BlackElo "2423"]
[Annotator "ChessBase"]
[PlyCount "73"]
[EventDate "2019.09.15"]
[EventType "team-tourn"]
[EventCountry "CZE"]
[SourceTitle "playchess.com"]
[Source "ChessBase"]
[SourceQuality "1"]
[TimeControl "40/5400+30:1800+30"]

1. Nf3 {[%emt 0:00:00]} Nf6 {[%emt 0:00:00]} 2. g3 {[%emt 0:00:00]} d5 {[%emt 0:01:26]} 3. Bg2 {[%emt 0:00:00]} g6 {[%emt 0:05:58]} 4. d4 {[%emt 0:03:27]} Bg7 {[%emt 0:00:06]} 5. O-O {[%emt 0:00:17]} O-O {[%emt 0:00:12]} 6. Nbd2 {[%emt 0:00:21]} c6 {[%emt 0:18:12]} 7. c3 {[%emt 0:03:00]} Nbd7 {[%emt 0:05:15]} 8. Re1 {[%emt 0:00:57]} Re8 {[%emt 0:14:20]} 9. e4 {[%emt 0:01:43]} e5 {[%emt 0:00:23]} 10. exd5 {[%emt 0:13:53]} Nxd5 {[%emt 0:00:18]} 11. dxe5 {[%emt 0:05:20]} Nxe5 {[%emt 0:00:41]} 12. Nxe5 {[%emt 0:00:07]} Rxe5 {[%emt 0:02:57]} 13. Rxe5 {[%emt 0:01:59]} Bxe5 {[%emt 0:00:04]} 14. Nf3 {[%emt 0:06:53]} Bf6 {[%emt 0:00:24]} 15. Bh6 {[%emt 0:00:30]} Bd7 {[%emt 0:11:07]} 16. Qd2 {[%emt 0:03:38]} Qa5 {[%emt 0:05:12]} 17. Ng5 {[%emt 0:06:28]} Rd8 {[%emt 0:06:59]} 18. Ne4 {[%emt 0:00:33]} Bh8 {[%emt 0:05:39]} 19. Qg5 {[%emt 0:08:56]} Re8 {[%emt 0:06:01]} 20. c4 {[%emt 0:11:51]} Re5 {[%emt 0:01:18]} 21. Qd2 {[%emt 0:00:25]} Qxd2 {[%emt 0:00:46]} 22. Bxd2 {[%emt 0:00:06]} Nb6 {[%emt 0:05:40]} 23. Bc3 {[%emt 0:07:11]} Re7 {[%emt 0:02:10]} 24. Bxh8 {[%emt 0:05:25]} Kxh8 {[%emt 0:00:05]} 25. b3 {[%emt 0:00:04]} Kg7 {[%emt 0:01:51]} 26. Rd1 {[%emt 0:00:34]} Bg4 {[%emt 0:00:36]} 27. f3 {[%emt 0:00:13]} Bf5 {[%emt 0:02:28]} 28. Nc5 {[%emt 0:03:14]} Re2 {[%emt 0:00:42]} 29. g4 {[%emt 0:03:32]} Bc8 {[%emt 0:00:05]} 30. a4 {[%emt 0:02:41]} Re5 {[%emt 0:00:08]} 31. Ne4 {[%emt 0:00:21]} a5 {[%emt 0:02:50]} 32. Rd8 {[%emt 0:01:00]} Re7 {[%emt 0:01:35]} 33. g5 {[%emt 0:05:11]} Rd7 {[%emt 0:00:07]} 34. Re8 {[%emt 0:00:04]} f5 {[%emt 0:00:20]} 35. gxf6+ {[%emt 0:00:41]} Kf7 {[%emt 0:00:56]} 36. Rh8 {[%emt 0:00:16]} h5 {[%emt 0:00:34]} 37. c5 {[%emt 0:01:39]} 1-0

[Event "CZE Extraliga 2019-20"]
[Site "Czech Republic"]
[Date "2020.01.26"]
[Round "6.5"]
[White "Hollan, Martin"]
[Black "Jansa, Vlastimil"]
[Result "0-1"]
[ECO "A50"]
[WhiteElo "2403"]
[BlackElo "2452"]
[Annotator "ChessBase"]
[PlyCount "126"]
[EventDate "2019.09.15"]
[EventType "team-tourn"]
[EventCountry "CZE"]
[SourceTitle "playchess.com"]
[Source "ChessBase"]
[SourceQuality "1"]
[TimeControl "40/5400+30:1800+30"]

1. d4 {[%emt 0:00:00]} Nf6 {[%emt 0:00:00]} 2. c4 {[%emt 0:00:00]} g6 {[%emt 0:00:04]} 3. h4 {[%emt 0:00:00]} Bg7 {[%emt 0:01:19]} 4. Nc3 {[%emt 0:00:00]} c5 {[%emt 0:02:42]} 5. d5 {[%emt 0:00:05]} d6 {[%emt 0:00:17]} 6. e4 {[%emt 0:00:30]} O-O {[%emt 0:06:34]} 7. Bg5 {[%emt 0:04:16]} h6 {[%emt 0:03:38]} 8. Bf4 {[%emt 0:02:53]} Re8 {[%emt 0:02:59]} 9. Qd2 {[%emt 0:00:43]} h5 {[%emt 0:03:39]} 10. f3 {[%emt 0:02:22]} e6 {[%emt 0:05:18]} 11. dxe6 {[%emt 0:00:40]} Bxe6 {[%emt 0:00:25]} 12. Bxd6 {[%emt 0:01:56]} Nc6 {[%emt 0:04:15]} 13. Bxc5 {[%emt 0:05:00]} Qxd2+ {[%emt 0:11:36]} 14. Kxd2 {[%emt 0:00:12]} Rac8 {[%emt 0:00:57]} 15. Rd1 {[%emt 0:26:17]} Ne5 {[%emt 0:02:47]} 16. Bxa7 {[%emt 0:04:13]} Bxc4 {[%emt 0:01:42]} 17. Ke1 {[%emt 0:11:02]} Red8 {[%emt 0:08:37]} 18. Bd4 {[%emt 0:02:32]} Bxf1 {[%emt 0:10:05]} 19. Bxe5 {[%emt 0:07:25]} Rxd1+ {[%emt 0:02:49]} 20. Nxd1 {[%emt 0:00:13]} Rc1 {[%emt 0:04:28]} 21. Kxf1 {[%emt 0:02:33]} Rxd1+ {[%emt 0:00:16]} 22. Ke2 {[%emt 0:00:06]} Ra1 {[%emt 0:01:33]} 23. Bc3 {[%emt 0:00:59]} Nd7 {[%emt 0:01:37]} 24. Kf2 {[%emt 0:10:32]} Nc5 {[%emt 0:06:45]} 25. Bxg7 {[%emt 0:14:34]} Kxg7 {[%emt 0:00:09]} 26. g3 {[%emt 0:00:16]} Nd3+ {[%emt 0:01:29]} 27. Ke3 {[%emt 0:00:19]} Nxb2 {[%emt 0:10:58]} 28. g4 {[%emt 0:00:10]} Nc4+ {[%emt 0:01:18]} 29. Kf4 {[%emt 0:04:04]} hxg4 {[%emt 0:00:23]} 30. Kxg4 {[%emt 0:00:29]} b5 {[%emt 0:00:13]} 31. h5 {[%emt 0:00:34]} gxh5+ {[%emt 0:00:21]} 32. Kxh5 {[%emt 0:00:11]} b4 {[%emt 0:00:14]} 33. Kg4 {[%emt 0:00:41]} Rxa2 {[%emt 0:01:13]} 34. Nh3 {[%emt 0:00:07]} b3 {[%emt 0:01:27]} 35. Nf4 {[%emt 0:00:04]} b2 {[%emt 0:01:10]} 36. Nd3 {[%emt 0:00:10]} Nd2 {[%emt 0:01:20]} 37. Nxb2 {[%emt 0:00:05]} Rxb2 {[%emt 0:00:06]} 38. Rh2 {[%emt 0:00:37]} Kf6 {[%emt 0:00:50]} 39. f4 {[%emt 0:00:26]} Nc4 {[%emt 0:00:32]} 40. e5+ {[%emt 0:00:09]} Ke6 {[%emt 0:00:40]} 41. Rh6+ {[%emt 0:30:43]} Ke7 {[%emt 0:33:12]} 42. Rc6 {[%emt 0:01:52]} Ne3+ {[%emt 0:00:00]} 43. Kf3 {[%emt 0:00:00]} Nf5 {[%emt 0:00:00]} 44. Rc7+ {[%emt 0:00:00]} Ke8 {[%emt 0:00:00]} 45. Ra7 {[%emt 0:00:00]} Rb4 {[%emt 0:00:00]} 46. Kg4 {[%emt 0:00:00]} Nd4 {[%emt 0:00:00]} 47. Kh5 {[%emt 0:00:00]} Kf8 {[%emt 0:00:00]} 48. Ra8+ {[%emt 0:00:00]} Kg7 {[%emt 0:00:00]} 49. Ra7 {[%emt 0:00:00]} Rb6 {[%emt 0:00:00]} 50. Kg4 {[%emt 0:00:00]} Rg6+ {[%emt 0:00:00]} 51. Kh4 {[%emt 0:02:30]} Nf5+ {[%emt 0:00:00]} 52. Kh5 {[%emt 0:00:46]} Re6 {[%emt 0:00:00]} 53. Kg5 {[%emt 0:00:50]} Ne3 {[%emt 0:00:00]} 54. Kh4 {[%emt 0:02:10]} Kg6 {[%emt 0:00:00]} 55. Kg3 {[%emt 0:00:16]} Rb6 {[%emt 0:00:34]} 56. Kf3 {[%emt 0:00:21]} Nf5 {[%emt 0:00:12]} 57. Ra3 {[%emt 0:00:33]} Nh6 {[%emt 0:02:20]} 58. Kg3 {[%emt 0:00:57]} Kf5 {[%emt 0:01:03]} 59. Ra5 {[%emt 0:00:35]} Rb3+ {[%emt 0:00:29]} 60. Kg2 {[%emt 0:00:27]} Kxf4 {[%emt 0:00:32]} 61. Ra6 {[%emt 0:00:09]} Rb2+ {[%emt 0:00:27]} 62. Kf1 {[%emt 0:00:23]} Ng4 {[%emt 0:00:54]} 63. e6 {[%emt 0:00:15]} Kf3 {[%emt 0:01:07]} 0-1

[Event "CZE Extraliga 2019-20"]
[Site "Czech Republic"]
[Date "2020.01.26"]
[Round "6.5"]
[White "BSS7 Szotkowski Jakub IM"]
[Black "NOV12 Babula Vlastimil GM"]
[Result "0-1"]
[ECO "E01"]
[WhiteElo "2388"]
[BlackElo "2559"]
[Annotator "ChessBase"]
[PlyCount "88"]
[EventDate "2019.09.15"]
[EventType "team-tourn"]
[EventCountry "CZE"]
[SourceTitle "playchess.com"]
[Source "ChessBase"]
[SourceQuality "1"]
[TimeControl "40/5400+30:1800+30"]

1. d4 {[%emt 0:00:00]} Nf6 {[%emt 0:00:00]} 2. c4 {[%emt 0:00:00]} e6 {[%emt 0:00:00]} 3. g3 {[%emt 0:00:04]} d5 {[%emt 0:00:32]} 4. Bg2 {[%emt 0:00:09]} Bb4+ {[%emt 0:00:26]} 5. Bd2 {[%emt 0:00:16]} Be7 {[%emt 0:00:32]} 6. Nf3 {[%emt 0:00:35]} O-O {[%emt 0:00:25]} 7. O-O {[%emt 0:01:48]} Nbd7 {[%emt 0:00:21]} 8. Qc2 {[%emt 0:05:01]} Ne4 {[%emt 0:00:52]} 9. Nc3 {[%emt 0:02:56]} Nxd2 {[%emt 0:03:43]} 10. Nxd2 {[%emt 0:00:53]} c6 {[%emt 0:02:20]} 11. e4 {[%emt 0:06:47]} dxc4 {[%emt 0:08:32]} 12. Nxc4 {[%emt 0:01:36]} Nb6 {[%emt 0:00:17]} 13. Qd3 {[%emt 0:02:37]} Nxc4 {[%emt 0:05:43]} 14. Qxc4 {[%emt 0:00:09]} Qb6 {[%emt 0:00:36]} 15. b3 {[%emt 0:04:05]} Rd8 {[%emt 0:01:47]} 16. Rfd1 {[%emt 0:06:49]} e5 {[%emt 0:03:39]} 17. d5 {[%emt 0:02:53]} Bg4 {[%emt 0:03:09]} 18. Na4 {[%emt 0:08:54]} Qa5 {[%emt 0:02:53]} 19. f3 {[%emt 0:04:23]} cxd5 {[%emt 0:10:44]} 20. exd5 {[%emt 0:01:13]} Bf5 {[%emt 0:04:06]} 21. g4 {[%emt 0:14:19]} Rac8 {[%emt 0:08:23]} 22. Qe2 {[%emt 0:00:14]} Bc2 {[%emt 0:05:26]} 23. Rd2 {[%emt 0:03:12]} Bg6 {[%emt 0:00:17]} 24. f4 {[%emt 0:06:33]} exf4 {[%emt 0:01:03]} 25. Rad1 {[%emt 0:02:55]} Bb4 {[%emt 0:04:09]} 26. Rd4 {[%emt 0:03:39]} Bd6 {[%emt 0:08:38]} 27. Qd2 {[%emt 0:03:53]} Qxd2 {[%emt 0:00:44]} 28. R4xd2 {[%emt 0:00:07]} b5 {[%emt 0:02:35]} 29. Nb2 {[%emt 0:00:06]} Bc5+ {[%emt 0:00:29]} 30. Kh1 {[%emt 0:00:35]} Be3 {[%emt 0:00:38]} 31. Re2 {[%emt 0:00:04]} h5 {[%emt 0:05:38]} 32. h3 {[%emt 0:00:36]} hxg4 {[%emt 0:01:45]} 33. hxg4 {[%emt 0:00:07]} f5 {[%emt 0:00:53]} 34. Bf3 {[%emt 0:00:33]} fxg4 {[%emt 0:01:11]} 35. Bxg4 {[%emt 0:00:17]} Be4+ {[%emt 0:05:29]} 36. Kh2 {[%emt 0:00:12]} Rc7 {[%emt 0:02:57]} 37. Nd3 {[%emt 0:02:11]} g5 {[%emt 0:01:45]} 38. Nf2 {[%emt 0:02:52]} Rh7+ {[%emt 0:00:29]} 39. Nh3 {[%emt 0:00:05]} Rh4 {[%emt 0:01:32]} 40. Rxe3 {[%emt 0:02:10]} fxe3 {[%emt 0:00:02]} 41. Kg3 {[%emt 0:30:11]} Rxg4+ {[%emt 0:09:24]} 42. Kxg4 {[%emt 0:00:00]} Rxd5 {[%emt 0:01:43]} 43. Rxd5 {[%emt 0:00:00]} e2 {[%emt 0:05:23]} 44. Rxg5+ {[%emt 0:00:00]} Kf8 {[%emt 0:01:14]} 0-1

[Event "CZE Extraliga 2019-20"]
[Site "Czech Republic"]
[Date "2020.01.26"]
[Round "6.6"]
[White "NOV13 Nguyen Thai Dai Van GM"]
[Black "BSS8 Mrazek Lumir FM"]
[Result "1-0"]
[ECO "A52"]
[WhiteElo "2545"]
[BlackElo "2303"]
[Annotator "ChessBase"]
[PlyCount "73"]
[EventDate "2019.09.15"]
[EventType "team-tourn"]
[EventCountry "CZE"]
[SourceTitle "playchess.com"]
[Source "ChessBase"]
[SourceQuality "1"]
[TimeControl "40/5400+30:1800+30"]

1. d4 {[%emt 0:00:00]} Nf6 {[%emt 0:00:01]} 2. c4 {[%emt 0:00:00]} e5 {[%emt 0:00:22]} 3. dxe5 {[%emt 0:02:17]} Ng4 {[%emt 0:00:08]} 4. Bf4 {[%emt 0:12:38]} Nc6 {[%emt 0:00:13]} 5. Nf3 {[%emt 0:01:38]} Bb4+ {[%emt 0:00:07]} 6. Nbd2 {[%emt 0:01:42]} Qe7 {[%emt 0:00:47]} 7. a3 {[%emt 0:11:29]} Ngxe5 {[%emt 0:00:33]} 8. Nxe5 {[%emt 0:01:08]} Nxe5 {[%emt 0:00:19]} 9. e3 {[%emt 0:00:06]} Bxd2+ {[%emt 0:02:09]} 10. Qxd2 {[%emt 0:00:06]} d6 {[%emt 0:01:26]} 11. Be2 {[%emt 0:00:20]} O-O {[%emt 0:00:23]} 12. O-O {[%emt 0:01:10]} b6 {[%emt 0:00:41]} 13. Qc3 {[%emt 0:06:00]} Bb7 {[%emt 0:01:48]} 14. c5 {[%emt 0:07:29]} bxc5 {[%emt 0:08:20]} 15. Bxe5 {[%emt 0:00:08]} dxe5 {[%emt 0:02:04]} 16. Rfc1 {[%emt 0:01:20]} Rad8 {[%emt 0:08:19]} 17. Qxc5 {[%emt 0:16:33]} Qxc5 {[%emt 0:22:35]} 18. Rxc5 {[%emt 0:00:08]} Rd2 {[%emt 0:00:40]} 19. Rxc7 {[%emt 0:00:06]} Rxb2 {[%emt 0:01:38]} 20. Bc4 {[%emt 0:01:08]} Rb6 {[%emt 0:06:06]} 21. Rd1 {[%emt 0:06:32]} Ba6 {[%emt 0:02:06]} 22. Bd5 {[%emt 0:04:44]} Be2 {[%emt 0:08:05]} 23. Rdc1 {[%emt 0:02:02]} Bg4 {[%emt 0:07:02]} 24. Rxa7 {[%emt 0:00:12]} Be6 {[%emt 0:00:09]} 25. Bxe6 {[%emt 0:01:36]} Rxe6 {[%emt 0:00:25]} 26. g3 {[%emt 0:07:33]} g6 {[%emt 0:01:32]} 27. Kg2 {[%emt 0:04:36]} Rf6 {[%emt 0:00:24]} 28. a4 {[%emt 0:00:29]} Rb8 {[%emt 0:00:44]} 29. Rc2 {[%emt 0:00:10]} g5 {[%emt 0:07:34]} 30. Re7 {[%emt 0:02:59]} Rb4 {[%emt 0:02:11]} 31. Rxe5 {[%emt 0:00:10]} h6 {[%emt 0:00:19]} 32. a5 {[%emt 0:00:59]} Ra4 {[%emt 0:00:11]} 33. Rcc5 {[%emt 0:03:51]} Ra1 {[%emt 0:03:36]} 34. Rf5 {[%emt 0:00:24]} Rd6 {[%emt 0:00:07]} 35. Rc7 {[%emt 0:00:42]} g4 {[%emt 0:01:49]} 36. Rfxf7 {[%emt 0:00:21]} Rdd1 {[%emt 0:00:09]} 37. Rg7+ {[%emt 0:00:05]} 1-0

[Event "CZE Extraliga 2019-20"]
[Site "Czech Republic"]
[Date "2020.01.26"]
[Round "6.6"]
[White "Pakleza, Zbigniew"]
[Black "Rydl, Jiri"]
[Result "1/2-1/2"]
[ECO "D11"]
[WhiteElo "2491"]
[BlackElo "2422"]
[Annotator "ChessBase"]
[PlyCount "88"]
[EventDate "2019.09.15"]
[EventType "team-tourn"]
[EventCountry "CZE"]
[SourceTitle "playchess.com"]
[Source "ChessBase"]
[SourceQuality "1"]
[TimeControl "40/5400+30:1800+30"]

1. d4 d5 2. c4 c6 3. Nf3 Nf6 4. e3 Bg4 5. Qb3 Qb6 6. Ne5 Be6 7. Nc3 dxc4 8. Bxc4 Bxc4 9. Qxc4 e6 10. O-O Be7 11. e4 O-O 12. Be3 Qa6 13. f3 b5 14. Qb3 Nbd7 15. Nxd7 Nxd7 16. Rfd1 Rfc8 17. Kh1 b4 18. Na4 Qb5 19. Rac1 h5 20. Qc2 a5 21. b3 Bf8 22. Qf2 e5 23. h3 Re8 24. Rc2 exd4 25. Bxd4 Rad8 26. Rcd2 Ne5 27. Nb2 Ng6 28. Nc4 a4 29. Bb2 Rxd2 30. Rxd2 axb3 31. axb3 Qg5 32. Bd4 Ra8 33. Rd1 Qb5 34. f4 f5 35. Qf3 Ra2 36. Ra1 Rxa1+ 37. Bxa1 h4 38. Qh5 Ne7 39. Kh2 fxe4 40. Qxh4 Nf5 41. Qg4 Qd5 42. Be5 Qf7 43. Qe2 Qd5 44. Qg4 Qf7 1/2-1/2

[Event "CZE Extraliga 2019-20"]
[Site "Czech Republic"]
[Date "2020.01.26"]
[Round "6.6"]
[White "Kislinsky, Alexey"]
[Black "Rubes, Jan"]
[Result "1/2-1/2"]
[ECO "C45"]
[WhiteElo "2436"]
[BlackElo "2363"]
[Annotator "NA"]
[PlyCount "39"]
[EventDate "2019.09.15"]
[EventType "team-tourn"]
[EventCountry "CZE"]
[SourceTitle "playchess.com"]
[Source "ChessBase"]
[SourceQuality "1"]
[TimeControl "40/5400+30:1800+30"]

1. e4 {[%emt 0:00:00]} e5 {[%emt 0:00:00]} 2. Nf3 {[%emt 0:00:04]} Nc6 {[%emt 0:00:00]} 3. d4 {[%emt 0:00:05]} exd4 {[%emt 0:00:00]} 4. Nxd4 {[%emt 0:00:05]} Nf6 {[%emt 0:00:03]} 5. Nxc6 {[%emt 0:00:10]} bxc6 {[%emt 0:00:05]} 6. e5 {[%emt 0:00:22]} Qe7 {[%emt 0:00:03]} 7. Qe2 {[%emt 0:00:06]} Nd5 {[%emt 0:00:03]} 8. g3 {[%emt 0:00:45]} g6 {[%emt 0:00:22]} 9. c4 {[%emt 0:00:23]} Ba6 {[%emt 0:00:03]} 10. b3 {[%emt 0:01:07]} Bg7 {[%emt 0:00:14]} 11. Bb2 {[%emt 0:00:07]} O-O {[%emt 0:00:08]} 12. Bg2 {[%emt 0:00:15]} Rae8 {[%emt 0:00:03]} 13. O-O {[%emt 0:00:28]} Bxe5 {[%emt 0:00:05]} 14. Qxe5 {[%emt 0:00:25]} Qxe5 {[%emt 0:00:03]} 15. Bxe5 {[%emt 0:00:06]} Rxe5 {[%emt 0:00:02]} 16. cxd5 {[%emt 0:00:07]} Bxf1 {[%emt 0:00:04]} 17. Kxf1 {[%emt 0:00:04]} cxd5 {[%emt 0:00:03]} 18. Nc3 {[%emt 0:02:34]} c6 {[%emt 0:00:03]} 19. Rd1 {[%emt 0:03:01]} a5 {[%emt 0:00:14]} 20. Bf3 {[%emt 0:02:03]} 1/2-1/2